fUSD/lending_fUSD_20250101
["ID","MTS","AMOUNT","RATE_DAILY","PERIOD"]
[347339716,1735707046762,-1721.39,0.00011048,2]
[347339717,1735707046771,-500.0,0.00011048,2]
[347339718,1735707046780,-500.0,0.00011048,2]
[347339719,1735707046790,-1164.04,0.00011048,2]
[347339720,1735707046799,-3431.71,0.00011048,2]
[347339721,1735707046808,-500.0,0.00011048,2]
[347339722,1735707046818,-500.0,0.00011048,2]
[347339723,1735707046827,-500.0,0.00011048,2]
[347339724,1735707046836,-1989.6735777,0.00011048,2]
[347339725,1735707046849,-218.1064223,0.00011048,2]
[347339726,1735707046858,-500.0,0.00011048,2]
[347339727,1735707046868,-500.0,0.00011048,2]
[347339728,1735707046877,-500.0,0.00011048,2]
[347339729,1735707046887,-2127.21,0.00011048,2]
[347339730,1735707046897,-500.0,0.00011048,2]
[347339731,1735707046906,-1102.57491214,0.00011048,2]
[347339732,1735707046933,-426.50508786,0.00011048,2]
[347339733,1735707046943,-500.0,0.00011048,2]
[347339734,1735707046953,-500.0,0.00011048,2]
[347339735,1735707046963,-236.88652814,0.00011048,2]
[347339736,1735707094287,158.28,8.072e-05,2]
[347339737,1735707111538,1200.0,9.78e-05,2]
[347339738,1735707118787,250.0,0.00010083,2]
[347339739,1735707122601,5000.0,0.00010949,2]
[347339740,1735707130942,2600.0,0.00010876,2]
[347339741,1735707137629,918.4834,0.00010948,2]
[347339742,1735707139507,390.98,0.00010077,2]
[347339743,1735707140581,200.0,0.000105,3]
[347339744,1735707142644,500.0,0.000106,3]
[347339745,1735707144748,800.0,0.000107,3]
[347339746,1735707147262,1100.0,0.000108,3]
[347339747,1735707148904,1300.0,0.000109,3]
[347339748,1735707149882,247.36,0.0001051,2]
[347339749,1735707149984,250.0,0.00010077,2]
[347339750,1735707176672,155.73408,0.0001094,2]
[347339751,1735707183305,270.37981827,0.00010946,2]
[347339753,1735707246634,163.58,0.00010078,2]
[347339754,1735707394934,448.67,0.00010064,2]
[347339755,1735707419485,823.64282895,0.00010947,2]
[347339756,1735707437186,357.0568,0.00010947,2]
[347339757,1735707471437,300.81,0.00010137,2]
[347339759,1735707478792,561.99,8.219e-05,2]
[347339760,1735707478990,561.99,0.00010479,2]
[347339761,1735707534419,1000.0,0.00010065,2]
[347339762,1735707682972,1000.0,0.00011,2]
[347339763,1735707694058,23900.0,0.00010073,2]
[347339764,1735707699226,150.010114,0.0002,120]
[347339765,1735707700123,150.010114,0.0002,120]
[347339766,1735707700834,150.010114,0.0002,120]
[347339767,1735707701368,150.010114,0.0002,120]
[347339768,1735707702135,150.010114,0.0002,120]
[347339769,1735707702511,150.010114,0.0002,120]
[347339770,1735707702619,206.6818977,0.0002,120]
[347339771,1735707703106,150.010114,0.0002,120]
[347339772,1735707703743,150.010114,0.0002,120]
[347339773,1735707704361,150.010114,0.0002,120]
[347339774,1735707705069,150.010114,0.0002,120]
[347339775,1735707705771,150.010114,0.0002,120]
[347339776,1735707706341,150.010114,0.0002,120]
[347339777,1735707707933,150.010114,0.0002,120]
[347339778,1735707708173,150.010114,0.0002,120]
[347339779,1735707708413,150.010114,0.0002,120]
[347339780,1735707708930,150.010114,0.0002,120]
[347339781,1735707709585,150.010114,0.0002,120]
[347339782,1735707710219,150.010114,0.0002,120]
[347339783,1735707710907,150.010114,0.0002,120]
[347339784,1735707711961,150.010114,0.0002,120]
[347339785,1735707811961,686.36902415,0.00010946,2]
[347339786,1735707840303,237.332,0.0001051,2]
[347339787,1735707911314,150.0,0.00010677,2]
[347339788,1735707911715,150.0,0.00010776,2]
[347339789,1735707911978,150.0,0.00010874,2]
[347339790,1735707912718,150.0,0.00010973,2]
[347339791,1735707917678,150.0,0.00010677,2]
[347339792,1735707918042,150.0,0.00010874,2]
[347339793,1735707927399,150.0,0.00010677,2]
[347339794,1735707927513,150.0,0.00010809,2]
[347339795,1735707927632,150.0,0.0001094,2]
[347339796,1735707951680,184.3848531,0.00010947,2]
[347339797,1735707996671,250.0,0.00010068,2]
[347339798,1735708074923,157.1208901,0.00010946,2]
[347339799,1735708126331,596.34,0.00010078,2]
[347339800,1735708171978,167.24,0.00010079,2]
[347339801,1735708205052,571.97418675,0.00010945,2]
[347339816,1735708233149,-300.0,0.00011043,2]
[347339817,1735708233159,-179.299,0.00011044,2]
[347339818,1735708233169,-525.71061891,0.00011044,2]
[347339823,1735708238255,-3767.83538109,0.00011044,2]
[347339824,1735708238266,-19159.9056395,0.00011044,2]
[347339825,1735708238276,-497.56,0.00011044,2]
[347339826,1735708238286,-509.26,0.00011044,2]
[347339827,1735708238296,-501.95,0.00011044,2]
[347339828,1735708238306,-494.55,0.00011044,2]
[347339829,1735708238315,-502.85,0.00011044,2]
[347339830,1735708238326,-494.27,0.00011044,2]
[347339831,1735708238335,-500.59,0.00011044,2]
[347339832,1735708238345,-495.14,0.00011044,2]
[347339833,1735708238355,-499.74,0.00011044,2]
[347339834,1735708238365,-501.53,0.00011044,2]
[347339835,1735708238375,-19703.79219187,0.00011045,2]
[347339836,1735708238385,-648.42,0.00011045,2]
[347339837,1735708238395,-1957.12,0.00011045,2]
[347339838,1735708238405,-3451.29,0.00011045,2]
[347339839,1735708238415,-8607.83,0.00011045,2]
[347339840,1735708238425,-4355.66,0.00011045,2]
[347339841,1735708238435,-8193.88,0.00011045,2]
[347339842,1735708238445,-26881.21,0.00011045,2]
[347339843,1735708238455,-1408.27,0.00011045,2]
[347339844,1735708238465,-2857.26,0.00011045,2]
[347339845,1735708238476,-11048.22,0.00011045,2]
[347339846,1735708238486,-13203.14,0.00011045,2]
[347339847,1735708238496,-2273.67,0.00011045,2]
[347339848,1735708238506,-6270.17,0.00011045,2]
[347339849,1735708238516,-4841.75,0.00011045,2]
[347339850,1735708238526,-5281.58,0.00011045,2]
[347339851,1735708238536,-11121.88,0.00011045,2]
[347339852,1735708238545,-3406.78,0.00011045,2]
[347339853,1735708238554,-16559.17,0.00011045,2]
[347339854,1735708238564,-1355.84,0.00011045,2]
[347339855,1735708238574,-718.23,0.00011045,2]
[347339856,1735708238584,-3963.48,0.00011045,2]
[347339858,1735708238593,-4692.98,0.00011045,2]
[347339859,1735708238603,-1520.97,0.00011045,2]
[347339860,1735708238612,-1696.11,0.00011045,2]
[347339861,1735708238622,-3157.57,0.00011045,2]
[347339862,1735708238632,-4115.73,0.00011045,2]
[347339863,1735708238641,-958.03,0.00011045,2]
[347339864,1735708238651,-2902.84,0.00011045,2]
[347339865,1735708238661,-3513.72,0.00011045,2]
[347339866,1735708238671,-2361.87,0.00011045,2]
[347339867,1735708238680,-1515.99,0.00011045,2]
[347339868,1735708238690,-3754.91,0.00011045,2]
[347339869,1735708238700,-3079.83,0.00011045,2]
[347339870,1735708238710,-4116.61275077,0.00011045,2]
[347339871,1735708238719,-153347.00294299,0.00011045,2]
[347339872,1735708238731,-946.4,0.00011046,2]
[347339873,1735708238740,-500.0,0.00011046,2]
[347339874,1735708238750,-996.95,0.00011046,2]
[347339875,1735708238760,-1639.99,0.00011046,2]
[347339876,1735708238770,-651.84,0.00011046,2]
[347339877,1735708238780,-500.0,0.00011046,2]
[347339878,1735708238790,-386.4780072,0.00011046,2]
[347339879,1735708238800,-500.0,0.00011046,2]
[347339880,1735708238810,-500.0,0.00011046,2]
[347339881,1735708238820,-1074.13,0.00011046,2]
[347339882,1735708238830,-500.0,0.00011046,2]
[347339883,1735708238840,-1001.12,0.00011046,2]
[347339884,1735708238849,-500.0,0.00011046,2]
[347339885,1735708238859,-500.0,0.00011046,2]
[347339886,1735708238868,-1408.16,0.00011046,2]
[347339887,1735708238878,-2895.65,0.00011046,2]
[347339888,1735708238888,-500.0,0.00011046,2]
[347339889,1735708238903,-500.0,0.00011046,2]
[347339890,1735708238914,-1628.5,0.00011046,2]
[347339891,1735708238924,-500.0,0.00011046,2]
[347339892,1735708238935,-690.68,0.00011046,2]
[347339893,1735708238945,-843.11,0.00011046,2]
[347339894,1735708238954,-500.0,0.00011046,2]
[347339895,1735708238964,-500.0,0.00011046,2]
[347339896,1735708238976,-500.0,0.00011046,2]
[347339897,1735708238986,-582.47,0.00011046,2]
[347339898,1735708238996,-500.0,0.00011046,2]
[347339899,1735708239007,-608.23,0.00011046,2]
[347339900,1735708239017,-1111.02,0.00011046,2]
[347339901,1735708239027,-500.0,0.00011046,2]
[347339902,1735708239037,-500.0,0.00011046,2]
[347339903,1735708239047,-730.96,0.00011046,2]
[347339904,1735708239057,-512.79,0.00011046,2]
[347339905,1735708239067,-500.0,0.00011046,2]
[347339906,1735708239076,-1793.69,0.00011046,2]
[347339907,1735708239086,-500.0,0.00011046,2]
[347339908,1735708239096,-1115.54,0.00011046,2]
[347339909,1735708239106,-500.0,0.00011046,2]
[347339910,1735708239115,-1585.44,0.00011046,2]
[347339911,1735708239125,-4527.59,0.00011046,2]
[347339912,1735708239134,-500.0,0.00011046,2]
[347339913,1735708239143,-500.0,0.00011046,2]
[347339914,1735708239152,-500.0,0.00011046,2]
[347339915,1735708239162,-1424.8,0.00011046,2]
[347339916,1735708239171,-633.29,0.00011046,2]
[347339917,1735708239181,-1324.52,0.00011046,2]
[347339918,1735708239191,-2879.25,0.00011046,2]
[347339919,1735708239200,-526.20987437,0.00011046,2]
[347339920,1735708239209,-754.15,0.00011046,2]
[347339921,1735708239219,-500.0,0.00011046,2]
[347339922,1735708239229,-3288.73,0.00011046,2]
[347339923,1735708239239,-500.0,0.00011046,2]
[347339924,1735708239249,-559.26352259,0.00011046,2]
[347339925,1735708239258,-1825.54,0.00011046,2]
[347339926,1735708239268,-1497.6,0.00011046,2]
[347339927,1735708239278,-640.07,0.00011046,2]
[347339928,1735708239287,-2038.57,0.00011046,2]
[347339929,1735708239297,-500.0,0.00011046,2]
[347339930,1735708239306,-500.0,0.00011046,2]
[347339931,1735708239315,-612.08,0.00011046,2]
[347339932,1735708239325,-500.0,0.00011046,2]
[347339933,1735708239334,-500.0,0.00011046,2]
[347339934,1735708239343,-1006.41,0.00011046,2]
[347339935,1735708239353,-1465.36,0.00011046,2]
[347339936,1735708239363,-500.0,0.00011046,2]
[347339937,1735708239372,-500.0,0.00011046,2]
[347339938,1735708239382,-3393.24,0.00011046,2]
[347339939,1735708239391,-500.0,0.00011046,2]
[347339940,1735708239401,-1345.86,0.00011046,2]
[347339941,1735708239410,-500.0,0.00011046,2]
[347339942,1735708239420,-500.0,0.00011046,2]
[347339943,1735708239430,-500.0,0.00011046,2]
[347339944,1735708239440,-500.0,0.00011046,2]
[347339945,1735708239450,-2058.36,0.00011046,2]
[347339946,1735708239460,-325.83261967,0.00011046,2]
[347339947,1735708239469,-500.0,0.00011046,2]
[347339948,1735708239479,-1055.08,0.00011046,2]
[347339949,1735708239489,-500.0,0.00011046,2]
[347339950,1735708239500,-540.8117285,0.00011046,2]
[347339951,1735708239510,-500.0,0.00011046,2]
[347339952,1735708239520,-1019.44,0.00011046,2]
[347339953,1735708239529,-500.0,0.00011046,2]
[347339954,1735708239539,-500.0,0.00011046,2]
[347339955,1735708239549,-500.0,0.00011046,2]
[347339956,1735708239558,-500.0,0.00011046,2]
[347339957,1735708239568,-1809.48,0.00011046,2]
[347339958,1735708239578,-205.6919557,0.00011046,2]
[347339959,1735708239587,-500.0,0.00011046,2]
[347339960,1735708239597,-500.0,0.00011046,2]
[347339961,1735708239607,-500.0,0.00011046,2]
[347339962,1735708239616,-515.40990153,0.00011046,2]
[347339963,1735708239626,-1528.26,0.00011046,2]
[347339964,1735708239635,-586.91,0.00011046,2]
[347339965,1735708239646,-500.0,0.00011046,2]
[347339966,1735708239655,-1110.2,0.00011046,2]
[347339967,1735708239665,-871.9,0.00011046,2]
[347339968,1735708239674,-500.0,0.00011046,2]
[347339969,1735708239684,-2267.04,0.00011046,2]
[347339970,1735708239693,-500.0,0.00011046,2]
[347339971,1735708239703,-908.79,0.00011046,2]
[347339972,1735708239713,-500.0,0.00011046,2]
[347339973,1735708239724,-1573.06,0.00011046,2]
[347339974,1735708239734,-500.0,0.00011046,2]
[347339975,1735708239745,-1198.17,0.00011046,2]
[347339976,1735708239755,-491.43593076,0.00011046,2]
[347339977,1735708239802,-820.50406924,0.00011046,2]
[347339978,1735708239812,-500.0,0.00011046,2]
[347339979,1735708239821,-500.0,0.00011046,2]
[347339980,1735708239831,-500.0,0.00011046,2]
[347339981,1735708239841,-832.05,0.00011046,2]
[347339982,1735708239850,-3901.24,0.00011046,2]
[347339983,1735708239860,-30.76312913,0.00011046,2]
[347339984,1735708239871,-652.99687087,0.00011046,2]
[347339985,1735708239881,-557.91,0.00011046,2]
[347339986,1735708239891,-500.0,0.00011046,2]
[347339987,1735708239904,-500.0,0.00011046,2]
[347339988,1735708239915,-216.69583099,0.00011046,2]
[347339989,1735708239927,-673.61,0.00011046,2]
[347339990,1735708239939,-500.0,0.00011046,2]
[347339991,1735708239948,-632.6,0.00011046,2]
[347339992,1735708239959,-364.54913572,0.00011046,2]
[347339993,1735708239972,-135.45086428,0.00011046,2]
[347339994,1735708239981,-392.38190719,0.00011046,2]
[347339995,1735708240022,-107.61809281,0.00011046,2]
[347339996,1735708240031,-2805.90118736,0.00011046,2]
[347339998,1735708240566,-473.33495,0.00011046,2]
[347339999,1735708240579,-258.46386264,0.00011046,2]
[347340000,1735708240589,-176.82032182,0.00011046,2]
[347340001,1735708240678,-323.17967818,0.00011046,2]
[347340002,1735708240688,-164.28032182,0.00011046,2]
[347340009,1735708243898,-620.62004,0.00011045,2]
[347340010,1735708243923,-462.48996,0.00011045,2]
[347340011,1735708243932,-335.71967818,0.00011046,2]
[347340012,1735708243943,-500.0,0.00011046,2]
[347340013,1735708243952,-500.0,0.00011046,2]
[347340014,1735708243961,-779.06,0.00011046,2]
[347340015,1735708243970,-500.0,0.00011046,2]
[347340016,1735708243979,-39.75476877,0.00011046,2]
[347340020,1735708246420,-681.0,0.00011045,2]
[347340021,1735708246432,-1194.57,0.00011045,2]
[347340022,1735708246441,-911.15523123,0.00011046,2]
[347340023,1735708246451,-500.0,0.00011046,2]
[347340024,1735708246460,-572.31,0.00011046,2]
[347340025,1735708246469,-735.13,0.00011046,2]
[347340026,1735708246479,-686.37,0.00011046,2]
[347340027,1735708246488,-500.0,0.00011046,2]
[347340028,1735708246497,-500.0,0.00011046,2]
[347340029,1735708246508,-869.03,0.00011046,2]
[347340030,1735708246521,-176.50638287,0.00011046,2]
[347340031,1735708246533,-662.14,0.00011046,2]
[347340032,1735708246543,-2140.94,0.00011046,2]
[347340033,1735708246553,-500.0,0.00011046,2]
[347340034,1735708246563,-500.0,0.00011046,2]
[347340035,1735708246572,-500.0,0.00011046,2]
[347340036,1735708246582,-230.02512332,0.00011046,2]
[347340037,1735708246592,-1138.1,0.00011046,2]
[347340038,1735708246602,-500.0,0.00011046,2]
[347340039,1735708246612,-500.0,0.00011046,2]
[347340040,1735708246622,-500.0,0.00011046,2]
[347340041,1735708246632,-3534.98,0.00011046,2]
[347340042,1735708246642,-578.39,0.00011046,2]
[347340043,1735708246652,-526.76,0.00011046,2]
[347340044,1735708246664,-653.05,0.00011046,2]
[347340045,1735708246674,-500.0,0.00011046,2]
[347340046,1735708246684,-861.5,0.00011046,2]
[347340048,1735708246694,-500.0,0.00011046,2]
[347340049,1735708246703,-500.0,0.00011046,2]
[347340050,1735708246712,-1376.08,0.00011046,2]
[347340051,1735708246722,-500.0,0.00011046,2]
[347340052,1735708246731,-500.0,0.00011046,2]
[347340053,1735708246741,-1121.15,0.00011046,2]
[347340054,1735708246751,-1094.21,0.00011046,2]
[347340055,1735708246760,-500.0,0.00011046,2]
[347340056,1735708246769,-1183.23,0.00011046,2]
[347340057,1735708246778,-500.0,0.00011046,2]
[347340058,1735708246787,-1874.38,0.00011046,2]
[347340059,1735708246798,-849.14,0.00011046,2]
[347340060,1735708246807,-500.0,0.00011046,2]
[347340061,1735708246816,-624.67,0.00011046,2]
[347340062,1735708246825,-160.98000804,0.00011046,2]
[347340063,1735708246839,-339.01999196,0.00011046,2]
[347340064,1735708246848,-26.11352587,0.00011046,2]
[347340065,1735708257515,1200.37570421,0.00010943,2]
[347340066,1735708271018,2500.0,0.00010876,2]
[347340067,1735708277512,247.439,0.000105,2]
[347340068,1735708289311,150.0,0.00010842,2]
[347340069,1735708289416,150.0,0.00010878,2]
[347340070,1735708289508,150.0,0.00010857,2]
[347340071,1735708300859,162.06425647,0.00010946,2]
[347340072,1735708317185,169.85,0.00010392,2]
[347340073,1735708335354,5571.8226,0.00010946,2]
[347340074,1735708346208,150.0,0.00010904,2]
[347340075,1735708366544,5000.0,0.00010947,2]
[347340076,1735708370228,1000.0,0.00010946,2]
[347340077,1735708388496,150.0,0.0001083,2]
[347340078,1735708388548,150.0,0.00010797,2]
[347340079,1735708390034,268.66932,0.0001094,2]
[347340080,1735708402266,1962.8378,0.00010946,2]
[347340081,1735708402329,10000.0,0.00011,2]
[347340083,1735708412065,319.71,0.00010137,2]
[347340084,1735708413630,370.0,0.00010062,2]
[347340085,1735708463224,533.56,8.219e-05,2]
[347340086,1735708463377,533.56,0.00010479,2]
[347340087,1735708516860,661.65,0.0001,2]
[347340088,1735708553031,1000.0,0.00010066,2]
[347340089,1735708598440,571.97418675,0.00010944,2]
[347340090,1735708711104,3434.837,0.0001098,2]
[347340091,1735708711146,179.299,0.0001098,2]
[347340092,1735708754080,23900.0,0.00010075,2]
[347340093,1735708885964,57028.63262936,0.0001,2]
[347340094,1735708886059,150.0,0.00010902,2]
[347340095,1735708886108,150.0,0.0001092,2]
[347340096,1735708886167,150.0,0.00010871,2]
[347340097,1735708886223,150.0,0.00010928,2]
[347340098,1735708915195,237.687,0.000105,2]
[347340099,1735708978716,571.97418675,0.00010944,2]
[347340100,1735709030835,250.0,0.00010092,2]
[347340101,1735709048487,161.92,0.00010092,2]
[347340102,1735709061330,1250.0,0.00010943,2]
[347340103,1735709103560,150.0,0.00010701,2]
[347340104,1735709103901,150.0,0.0001085,2]
[347340105,1735709104302,150.0,0.00010999,2]
[347340106,1735709108371,150.0,0.00010701,2]
[347340107,1735709108614,150.0,0.00010999,2]
[347340108,1735709117823,1250.0,0.00010944,2]
[347340109,1735709121191,150.0,0.00010701,2]
[347340110,1735709121511,150.0,0.000109,2]
[347340111,1735709196681,390.41,0.00010098,2]
[347340112,1735709261066,158.0441598,0.00010945,2]
[347340116,1735709350150,571.97418675,0.00010943,2]
[347340117,1735709373589,480.2,8.219e-05,2]
[347340118,1735709373782,480.2,0.0001048,2]
[347340131,1735709431616,-992.18563616,0.00011043,2]
[347340132,1735709431690,-3505.25436384,0.00011043,2]
[347340133,1735709431702,-3367.32,0.00011043,2]
[347340134,1735709431712,-5061.52,0.00011043,2]
[347340135,1735709431723,-1500.0,0.00011043,2]
[347340136,1735709431733,-688.31,0.00011043,2]
[347340137,1735709431743,-2263.46,0.00011043,2]
[347340138,1735709431753,-3796.89,0.00011043,2]
[347340139,1735709431762,-918.11,0.00011043,2]
[347340140,1735709431773,-3598.45,0.00011043,2]
[347340141,1735709431783,-5545.59,0.00011043,2]
[347340142,1735709431792,-500.0,0.00011043,2]
[347340143,1735709431802,-1797.42,0.00011043,2]
[347340144,1735709431812,-3453.01265379,0.00011043,2]
[347340145,1735709431825,-2919.88734621,0.00011043,2]
[347340146,1735709431836,-8399.79,0.00011043,2]
[347340147,1735709431847,-3307.49,0.00011043,2]
[347340148,1735709431859,-4174.17,0.00011043,2]
[347340149,1735709431870,-5142.35,0.00011043,2]
[347340150,1735709431881,-7852.46,0.00011043,2]
[347340151,1735709431890,-26105.67,0.00011043,2]
[347340152,1735709431900,-3993.41,0.00011043,2]
[347340153,1735709431910,-2738.21,0.00011043,2]
[347340154,1735709431920,-5072.18,0.00011043,2]
[347340155,1735709431929,-1349.59,0.00011043,2]
[347340156,1735709431939,-1519.33,0.00011043,2]
[347340157,1735709431949,-3295.081624,0.00011043,2]
[347340158,1735709431959,-10587.88,0.00011043,2]
[347340159,1735709431968,-2206.98,0.00011043,2]
[347340161,1735709431978,-7483.78066479,0.00011043,2]
[347340163,1735709431988,-4640.01,0.00011043,2]
[347340165,1735709431998,-12653.01,0.00011043,2]
[347340167,1735709432008,-3309.150509,0.00011043,2]
[347340169,1735709432018,-6008.91,0.00011043,2]
[347340170,1735709432028,-541.47149826,0.00011043,2]
[347340172,1735709432038,-155.317427,0.00011043,2]
[347340174,1735709432048,-153.64538,0.00011043,2]
[347340175,1735709432057,-1942.0265206,0.00011043,2]
[347340183,1735709437560,-1055.343541,0.00011043,2]
[347340184,1735709437676,-3795.74206834,0.00011043,2]
[347340194,1735709439549,-343.88842845,0.00011043,2]
[347340195,1735709440446,-4460.44573788,0.00011043,2]
[347340196,1735709440461,-321.46911125,0.00011043,2]
[347340197,1735709440472,-1173.93499998,0.00011043,2]
[347340198,1735709440503,-1290.02270314,0.00011043,2]
[347340199,1735709440515,-651.0,0.00011043,2]
[347340205,1735709442893,-971.58688936,0.00011043,2]
[347340207,1735709442903,-10658.47,0.00011043,2]
[347340209,1735709442912,-1492.44285486,0.00011043,2]
[347340211,1735709442923,-590.52714514,0.00011043,2]
[347340212,1735709442934,-3264.83,0.00011043,2]
[347340213,1735709442944,-3798.33,0.00011043,2]
[347340214,1735709442954,-8942.3519664,0.00011043,2]
[347340215,1735709442992,-652.519868,0.00011043,2]
[347340216,1735709443022,-1195.3981656,0.00011043,2]
[347340217,1735709443032,-2378.86,0.00011043,2]
[347340218,1735709443042,-1457.6,0.00011043,2]
[347340219,1735709443053,-1452.83,0.00011043,2]
[347340220,1735709443063,-3371.3118344,0.00011043,2]
[347340239,1735709445628,-572.9281656,0.00011043,2]
[347340241,1735709445637,-141.41045374,0.00011043,2]
[347340243,1735709445718,-986.30146054,0.00011043,2]
[347340244,1735709445780,-5771.60791159,0.00011043,2]
[347340245,1735709445791,-7273.65017413,0.00011043,2]
[347340246,1735709445801,-1625.43,0.00011043,2]
[347340247,1735709445810,-906.97,0.00011043,2]
[347340248,1735709445819,-7472.29,0.00011043,2]
[347340249,1735709445828,-500.0,0.00011043,2]
[347340250,1735709445837,-1037.98,0.00011043,2]
[347340251,1735709445846,-895.67982587,0.00011043,2]
[347340252,1735709445858,-59.73017413,0.00011043,2]
[347340253,1735709445867,-612.07,0.00011043,2]
[347340254,1735709445876,-500.0,0.00011043,2]
[347340255,1735709445886,-500.0,0.00011043,2]
[347340256,1735709445895,-330.35039755,0.00011043,2]
[347340257,1735709445920,-169.64960245,0.00011043,2]
[347340258,1735709445929,-1571.66,0.00011043,2]
[347340259,1735709445938,-3448.52,0.00011043,2]
[347340260,1735709445947,-500.0,0.00011043,2]
[347340261,1735709445956,-1822.87183002,0.00011043,2]
[347340264,1735709491137,1000.0,0.00010076,2]
[347340265,1735709545366,227.377,0.000105,2]
[347340266,1735709548434,185.0,0.00010086,2]
[347340267,1735709553039,372.0,0.0002,120]
[347340268,1735709611298,268.66932,0.0001099,2]
[347340269,1735709711667,571.97418675,0.00010943,2]
[347340270,1735709713306,3412.86,0.00010088,2]
[347340271,1735709726290,150.0,0.00010932,2]
[347340272,1735709726333,150.0,0.00010797,2]
[347340273,1735709726387,150.0,0.00010845,2]
[347340274,1735709726427,150.0,0.00010988,2]
[347340275,1735709726484,150.0,0.00010899,2]
[347340276,1735709727096,150.0,0.00010817,2]
[347340277,1735709748808,2300.0,8.22e-05,2]
[347340278,1735709750404,2300.0,9.59e-05,2]
[347340279,1735709752545,2300.0,0.0001096,2]
[347340280,1735709794372,500.0,8.22e-05,2]
[347340281,1735709796093,500.0,0.0001096,2]
[347340282,1735709796268,1100.0,8.22e-05,2]
[347340283,1735709797957,1100.0,9.59e-05,2]
[347340284,1735709799459,1100.0,0.0001096,2]
[347340285,1735709921467,268.66932,0.0001098,2]
[347340286,1735709923375,250.0,0.00010075,2]
[347340287,1735710061970,571.97418675,0.00010942,2]
[347340288,1735710178975,218.131,0.000105,2]
[347340289,1735710210824,477.07,0.00010079,2]
[347340290,1735710222658,268.66932,0.0001094,2]
[347340291,1735710222694,268.66933,0.0001098,2]
[347340293,1735710237861,285.76,0.00010137,2]
[347340294,1735710290855,432.18,8.219e-05,2]
[347340295,1735710291048,432.18,0.0001048,2]
[347340296,1735710311158,150.0,0.00010677,2]
[347340297,1735710311493,150.0,0.00010914,2]
[347340298,1735710315311,150.0,0.00010677,2]
[347340299,1735710322983,150.0,0.00010677,2]
[347340300,1735710323288,150.0,0.00010973,2]
[347340301,1735710372508,1000.0,0.00010084,2]
[347340302,1735710386297,150.0,0.0001079,2]
[347340303,1735710386353,150.0,0.00010844,2]
[347340304,1735710386528,150.0,0.00010982,2]
[347340305,1735710386610,150.0,0.00010836,2]
[347340306,1735710386761,150.0,0.00010783,2]
[347340307,1735710386821,150.0,0.00010863,2]
[347340308,1735710566922,158.04415975,0.00010943,2]
[347340311,1735710631891,-150.0,0.00011014,2]
[347340312,1735710631901,-150.0,0.00011017,2]
[347340313,1735710631911,-277.10951664,0.00011019,2]
[347340314,1735710631924,-10684.51542659,0.00011019,2]
[347340315,1735710631937,-933.2,0.00011019,2]
[347340359,1735710637772,-465.19419433,0.00011019,2]
[347340367,1735710639806,-3858.83050626,0.00011019,2]
[347340370,1735710645067,185.0,0.00010113,2]
[347340371,1735710645782,-1224.73989343,0.00011019,2]